fUSD/lending_fUSD_20241223
["ID","MTS","AMOUNT","RATE_DAILY","PERIOD"]
[346394738,1734939040214,-326.11978337,0.00019178,2]
[346394739,1734939040226,-500.0,0.00019178,2]
[346394740,1734939040237,-500.0,0.00019178,2]
[346394741,1734939040248,-500.0,0.00019178,2]
[346394742,1734939040260,-500.0,0.00019178,2]
[346394743,1734939040272,-500.0,0.00019178,2]
[346394744,1734939040283,-500.0,0.00019178,2]
[346394745,1734939040297,-500.0,0.00019178,2]
[346394746,1734939040308,-537.46,0.00019178,2]
[346394747,1734939040319,-500.0,0.00019178,2]
[346394748,1734939040330,-500.0,0.00019178,2]
[346394749,1734939040341,-500.0,0.00019178,2]
[346394750,1734939040352,-500.0,0.00019178,2]
[346394751,1734939040363,-500.0,0.00019178,2]
[346394752,1734939040375,-500.0,0.00019178,2]
[346394753,1734939040386,-500.0,0.00019178,2]
[346394754,1734939040398,-597.39,0.00019178,2]
[346394755,1734939040409,-510.78,0.00019178,2]
[346394756,1734939040420,-195.34555024,0.00019178,2]
[346394757,1734939040432,-520.04,0.00019178,2]
[346394758,1734939040443,-500.0,0.00019178,2]
[346394759,1734939040455,-500.0,0.00019178,2]
[346394760,1734939040467,-519.1895154,0.00019178,2]
[346394761,1734939040478,-859.56,0.00019178,2]
[346394762,1734939040490,-500.0,0.00019178,2]
[346394763,1734939040501,-500.0,0.00019178,2]
[346394764,1734939040512,-576.79913182,0.00019178,2]
[346394765,1734939040523,-506.93708414,0.00019178,2]
[346394766,1734939040535,-500.0,0.00019178,2]
[346394767,1734939040549,-501.59637976,0.00019178,2]
[346394768,1734939040560,-500.0,0.00019178,2]
[346394769,1734939040572,-500.0,0.00019178,2]
[346394770,1734939040583,-500.0,0.00019178,2]
[346394771,1734939040595,-500.0,0.00019178,2]
[346394772,1734939040606,-857.71,0.00019178,2]
[346394773,1734939040618,-500.0,0.00019178,2]
[346394774,1734939040630,-574.74,0.00019178,2]
[346394775,1734939040642,-541.04,0.00019178,2]
[346394776,1734939040653,-500.0,0.00019178,2]
[346394777,1734939040665,-500.0,0.00019178,2]
[346394778,1734939040677,-500.0,0.00019178,2]
[346394779,1734939040689,-500.0,0.00019178,2]
[346394780,1734939040700,-436.01166638,0.00019178,2]
[346394781,1734939040711,-503.54209624,0.00019178,2]
[346394782,1734939040723,-500.0,0.00019178,2]
[346394783,1734939040735,-500.0,0.00019178,2]
[346394784,1734939040749,-500.0,0.00019178,2]
[346394785,1734939040759,-500.0,0.00019178,2]
[346394786,1734939040771,-500.0,0.00019178,2]
[346394787,1734939040782,-500.0,0.00019178,2]
[346394788,1734939040799,-500.0,0.00019178,2]
[346394789,1734939040812,-500.0,0.00019178,2]
[346394790,1734939040825,-500.0,0.00019178,2]
[346394791,1734939040837,-500.0,0.00019178,2]
[346394792,1734939040849,-500.0,0.00019178,2]
[346394793,1734939040861,-500.0,0.00019178,2]
[346394794,1734939040872,-500.0,0.00019178,2]
[346394795,1734939040884,-500.0,0.00019178,2]
[346394796,1734939040896,-501.43253541,0.00019178,2]
[346394797,1734939040907,-500.0,0.00019178,2]
[346394798,1734939040919,-644.65,0.00019178,2]
[346394799,1734939040931,-500.0,0.00019178,2]
[346394800,1734939040943,-500.0,0.00019178,2]
[346394801,1734939040954,-500.0,0.00019178,2]
[346394802,1734939040965,-500.0,0.00019178,2]
[346394803,1734939040976,-500.0,0.00019178,2]
[346394804,1734939040987,-500.0,0.00019178,2]
[346394805,1734939040998,-500.0,0.00019178,2]
[346394806,1734939041010,-500.0,0.00019178,2]
[346394807,1734939041022,-619.22,0.00019178,2]
[346394808,1734939041033,-504.76,0.00019178,2]
[346394809,1734939041048,-500.0,0.00019178,2]
[346394810,1734939041059,-500.0,0.00019178,2]
[346394811,1734939041071,-626.42,0.00019178,2]
[346394812,1734939041083,-500.0,0.00019178,2]
[346394813,1734939041095,-500.0,0.00019178,2]
[346394814,1734939041106,-350.30213107,0.00019178,2]
[346394815,1734939041117,-500.0,0.00019178,2]
[346394816,1734939041129,-692.13,0.00019178,2]
[346394817,1734939041140,-736.1,0.00019178,2]
[346394818,1734939041151,-500.0,0.00019178,2]
[346394819,1734939041160,-500.0,0.00019178,2]
[346394820,1734939041169,-500.0,0.00019178,2]
[346394821,1734939041178,-500.0,0.00019178,2]
[346394822,1734939041188,-500.0,0.00019178,2]
[346394823,1734939041197,-500.0,0.00019178,2]
[346394824,1734939041206,-500.0,0.00019178,2]
[346394825,1734939041505,-500.0,0.00019178,2]
[346394826,1734939041521,-500.0,0.00019178,2]
[346394827,1734939041531,-545.8,0.00019178,2]
[346394828,1734939041547,-619.92,0.00019178,2]
[346394829,1734939041556,-500.0,0.00019178,2]
[346394830,1734939041566,-500.0,0.00019178,2]
[346394831,1734939041575,-426.41062729,0.00019178,2]
[346394832,1734939041585,-500.0,0.00019178,2]
[346394833,1734939041595,-500.0,0.00019178,2]
[346394834,1734939041604,-500.0,0.00019178,2]
[346394835,1734939041614,-500.0,0.00019178,2]
[346394836,1734939041624,-500.0,0.00019178,2]
[346394837,1734939041634,-500.0,0.00019178,2]
[346394838,1734939041644,-500.0,0.00019178,2]
[346394839,1734939041654,-506.03133371,0.00019178,2]
[346394840,1734939041663,-500.0,0.00019178,2]
[346394841,1734939041672,-500.0,0.00019178,2]
[346394842,1734939041681,-500.0,0.00019178,2]
[346394843,1734939041691,-500.0,0.00019178,2]
[346394844,1734939041700,-500.0,0.00019178,2]
[346394845,1734939041709,-500.0,0.00019178,2]
[346394846,1734939041719,-500.0,0.00019178,2]
[346394847,1734939041728,-315.6298746,0.00019178,2]
[346394848,1734939041738,-500.0,0.00019178,2]
[346394849,1734939041748,-500.0,0.00019178,2]
[346394850,1734939041760,-500.0,0.00019178,2]
[346394851,1734939041770,-500.0,0.00019178,2]
[346394852,1734939041779,-500.0,0.00019178,2]
[346394853,1734939041791,-535.37188021,0.00019178,2]
[346394854,1734939041801,-500.0,0.00019178,2]
[346394855,1734939041810,-500.0,0.00019178,2]
[346394856,1734939041820,-500.0,0.00019178,2]
[346394857,1734939041830,-500.0,0.00019178,2]
[346394858,1734939041840,-500.0,0.00019178,2]
[346394859,1734939041850,-695.52,0.00019178,2]
[346394860,1734939041859,-509.45678503,0.00019178,2]
[346394861,1734939041868,-500.0,0.00019178,2]
[346394862,1734939041878,-500.0,0.00019178,2]
[346394863,1734939041887,-500.0,0.00019178,2]
[346394864,1734939041897,-500.0,0.00019178,2]
[346394865,1734939041907,-500.0,0.00019178,2]
[346394866,1734939041916,-250.53686294,0.00019178,2]
[346394867,1734939041926,-500.0,0.00019178,2]
[346394868,1734939041935,-500.0,0.00019178,2]
[346394869,1734939041945,-512.97692239,0.00019178,2]
[346394870,1734939041955,-500.0,0.00019178,2]
[346394871,1734939041964,-500.0,0.00019178,2]
[346394872,1734939041973,-500.0,0.00019178,2]
[346394873,1734939041982,-500.0,0.00019178,2]
[346394874,1734939041992,-636.17,0.00019178,2]
[346394875,1734939042001,-500.0,0.00019178,2]
[346394876,1734939042011,-500.0,0.00019178,2]
[346394877,1734939042020,-500.0,0.00019178,2]
[346394878,1734939042030,-500.0,0.00019178,2]
[346394879,1734939042040,-500.0,0.00019178,2]
[346394880,1734939042049,-500.0,0.00019178,2]
[346394881,1734939042059,-500.0,0.00019178,2]
[346394882,1734939042069,-643.31,0.00019178,2]
[346394883,1734939042080,-500.0,0.00019178,2]
[346394884,1734939042089,-615.0,0.00019178,2]
[346394885,1734939042098,-500.0,0.00019178,2]
[346394886,1734939042107,-500.0,0.00019178,2]
[346394887,1734939042116,-500.0,0.00019178,2]
[346394888,1734939042126,-500.0,0.00019178,2]
[346394889,1734939042136,-500.0,0.00019178,2]
[346394890,1734939042145,-500.0,0.00019178,2]
[346394891,1734939042154,-500.0,0.00019178,2]
[346394892,1734939042164,-500.0,0.00019178,2]
[346394893,1734939042173,-500.0,0.00019178,2]
[346394894,1734939042183,-500.0,0.00019178,2]
[346394895,1734939042192,-500.0,0.00019178,2]
[346394896,1734939042201,-444.17,0.00019178,2]
[346394897,1734939042211,-500.0,0.00019178,2]
[346394898,1734939042220,-656.64,0.00019178,2]
[346394899,1734939042229,-500.0,0.00019178,2]
[346394900,1734939042239,-553.59655146,0.00019178,2]
[346394901,1734939042248,-500.0,0.00019178,2]
[346394902,1734939042257,-150.300993,0.00019178,2]
[346394903,1734939042267,-500.0,0.00019178,2]
[346394904,1734939042276,-500.0,0.00019178,2]
[346394905,1734939042285,-500.0,0.00019178,2]
[346394906,1734939042298,-500.0,0.00019178,2]
[346394907,1734939042307,-551.38,0.00019178,2]
[346394908,1734939042316,-500.0,0.00019178,2]
[346394909,1734939042326,-500.0,0.00019178,2]
[346394910,1734939042335,-500.0,0.00019178,2]
[346394911,1734939042344,-500.0,0.00019178,2]
[346394912,1734939042354,-627.89,0.00019178,2]
[346394913,1734939042364,-913.45,0.00019178,2]
[346394914,1734939042374,-500.0,0.00019178,2]
[346394915,1734939042383,-500.0,0.00019178,2]
[346394916,1734939042392,-500.0,0.00019178,2]
[346394917,1734939042401,-866.49,0.00019178,2]
[346394918,1734939042411,-877.21,0.00019178,2]
[346394919,1734939042421,-500.0,0.00019178,2]
[346394920,1734939042431,-500.0,0.00019178,2]
[346394921,1734939042440,-500.0,0.00019178,2]
[346394922,1734939042450,-500.0,0.00019178,2]
[346394923,1734939042459,-500.0,0.00019178,2]
[346394924,1734939042469,-741.44,0.00019178,2]
[346394925,1734939042478,-500.0,0.00019178,2]
[346394926,1734939042487,-500.0,0.00019178,2]
[346394927,1734939042497,-500.0,0.00019178,2]
[346394928,1734939042506,-502.89,0.00019178,2]
[346394929,1734939042515,-728.49,0.00019178,2]
[346394930,1734939042524,-500.0,0.00019178,2]
[346394931,1734939042533,-500.0,0.00019178,2]
[346394932,1734939042546,-1438.82,0.00019178,2]
[346394933,1734939042555,-500.0,0.00019178,2]
[346394934,1734939042565,-500.0,0.00019178,2]
[346394935,1734939042574,-556.92,0.00019178,2]
[346394936,1734939042583,-500.0,0.00019178,2]
[346394937,1734939042592,-500.0,0.00019178,2]
[346394938,1734939042601,-500.0,0.00019178,2]
[346394939,1734939042610,-1052.68,0.00019178,2]
[346394940,1734939042619,-7125.37,0.00019178,2]
[346394941,1734939042628,-500.0,0.00019178,2]
[346394942,1734939042637,-500.0,0.00019178,2]
[346394943,1734939042647,-1029.91,0.00019178,2]
[346394944,1734939042656,-500.0,0.00019178,2]
[346394945,1734939042665,-500.0,0.00019178,2]
[346394946,1734939042674,-198.309265,0.00019178,2]
[346394947,1734939042683,-815.19,0.00019178,2]
[346394948,1734939042693,-1084.05,0.00019178,2]
[346394949,1734939042702,-784.81,0.00019178,2]
[346394950,1734939042711,-500.0,0.00019178,2]
[346394951,1734939042721,-977.95,0.00019178,2]
[346394952,1734939042730,-658.26,0.00019178,2]
[346394953,1734939042739,-880.7,0.00019178,2]
[346394954,1734939042751,-500.0,0.00019178,2]
[346394955,1734939042762,-720.99,0.00019178,2]
[346394956,1734939042771,-1664.87,0.00019178,2]
[346394957,1734939042781,-500.0,0.00019178,2]
[346394958,1734939042793,-830.81,0.00019178,2]
[346394959,1734939042803,-500.0,0.00019178,2]
[346394960,1734939042812,-500.0,0.00019178,2]
[346394961,1734939042821,-508.24411518,0.00019178,2]
[346394962,1734939042832,-1193.69,0.00019178,2]
[346394963,1734939042842,-506.13907165,0.00019178,2]
[346394964,1734939042851,-1622.08,0.00019178,2]
[346394965,1734939042860,-500.0,0.00019178,2]
[346394966,1734939042870,-1328.72,0.00019178,2]
[346394967,1734939042879,-674.35,0.00019178,2]
[346394968,1734939042888,-202.95715476,0.00019178,2]
[346394969,1734939042898,-2901.46,0.00019178,2]
[346394970,1734939042908,-500.0,0.00019178,2]
[346394971,1734939042918,-500.0,0.00019178,2]
[346394972,1734939042928,-740.32,0.00019178,2]
[346394973,1734939042937,-1133.42,0.00019178,2]
[346394974,1734939042946,-1707.1,0.00019178,2]
[346394975,1734939042955,-833.41,0.00019178,2]
[346394976,1734939042964,-990.59,0.00019178,2]
[346394977,1734939042973,-500.0,0.00019178,2]
[346394978,1734939042982,-654.35,0.00019178,2]
[346394979,1734939042991,-500.0,0.00019178,2]
[346394981,1734939043001,-2310.83,0.00019178,2]
[346394982,1734939043010,-1371.44,0.00019178,2]
[346394984,1734939043020,-500.0,0.00019178,2]
[346394986,1734939043029,-1827.98,0.00019178,2]
[346394988,1734939043039,-500.0,0.00019178,2]
[346394990,1734939043050,-2022.37,0.00019178,2]
[346394992,1734939043059,-500.0,0.00019178,2]
[346394994,1734939043068,-500.0,0.00019178,2]
[346394996,1734939043077,-676.94,0.00019178,2]
[346394997,1734939043086,-506.21116522,0.00019178,2]
[346394998,1734939043095,-500.0,0.00019178,2]
[346394999,1734939043105,-8328.5,0.00019178,2]
[346395000,1734939043114,-1480.58,0.00019178,2]
[346395001,1734939043123,-500.0,0.00019178,2]
[346395003,1734939043132,-1360.44,0.00019178,2]
[346395006,1734939043141,-500.0,0.00019178,2]
[346395009,1734939043151,-152.321553,0.00019178,2]
[346395012,1734939043159,-1343.03,0.00019178,2]
[346395014,1734939043168,-500.0,0.00019178,2]
[346395017,1734939043178,-688.61,0.00019178,2]
[346395020,1734939043188,-521.61004952,0.00019178,2]
[346395023,1734939043196,-2425.76,0.00019178,2]
[346395025,1734939043206,-2514.32,0.00019178,2]
[346395027,1734939043215,-500.0,0.00019178,2]
[346395029,1734939043225,-11807.11,0.00019178,2]
[346395031,1734939043236,-500.0,0.00019178,2]
[346395033,1734939043245,-500.0,0.00019178,2]
[346395035,1734939043255,-624.24,0.00019178,2]
[346395037,1734939043264,-500.0,0.00019178,2]
[346395039,1734939043273,-500.0,0.00019178,2]
[346395041,1734939043282,-3872.77,0.00019178,2]
[346395043,1734939043294,-504.43766124,0.00019178,2]
[346395045,1734939043304,-500.0,0.00019178,2]
[346395047,1734939043314,-500.0,0.00019178,2]
[346395049,1734939043323,-24409.79,0.00019178,2]
[346395051,1734939043332,-912.22,0.00019178,2]
[346395052,1734939043341,-3264.49,0.00019178,2]
[346395053,1734939043349,-500.0,0.00019178,2]
[346395054,1734939043358,-500.0,0.00019178,2]
[346395055,1734939043366,-501.23383922,0.00019178,2]
[346395056,1734939043381,-1105.36,0.00019178,2]
[346395057,1734939043394,-513.86,0.00019178,2]
[346395058,1734939043403,-933.96,0.00019178,2]
[346395059,1734939043412,-1645.06,0.00019178,2]
[346395060,1734939043421,-500.0,0.00019178,2]
[346395061,1734939043431,-500.0,0.00019178,2]
[346395062,1734939043440,-1751.99,0.00019178,2]
[346395063,1734939043450,-1406.34,0.00019178,2]
[346395064,1734939043464,-500.0,0.00019178,2]
[346395065,1734939043476,-2050.95,0.00019178,2]
[346395066,1734939043485,-656.01,0.00019178,2]
[346395067,1734939043495,-1038.39,0.00019178,2]
[346395068,1734939043504,-500.0,0.00019178,2]
[346395069,1734939043513,-559.33,0.00019178,2]
[346395070,1734939043522,-2186.66,0.00019178,2]
[346395071,1734939043532,-500.0,0.00019178,2]
[346395072,1734939043542,-1101.81,0.00019178,2]
[346395073,1734939043552,-500.0,0.00019178,2]
[346395074,1734939043561,-1353.07,0.00019178,2]
[346395075,1734939043571,-500.0,0.00019178,2]
[346395076,1734939043580,-1965.58,0.00019178,2]
[346395077,1734939043589,-500.0,0.00019178,2]
[346395078,1734939043599,-500.0,0.00019178,2]
[346395079,1734939043608,-500.0,0.00019178,2]
[346395080,1734939043618,-504.67314469,0.00019178,2]
[346395081,1734939043627,-1020.65,0.00019178,2]
[346395082,1734939043636,-500.0,0.00019178,2]
[346395083,1734939043646,-6793.18,0.00019178,2]
[346395084,1734939043655,-158.49543,0.00019178,2]
[346395085,1734939043664,-500.0,0.00019178,2]
[346395086,1734939043674,-522.35863935,0.00019178,2]
[346395087,1734939043683,-500.0,0.00019178,2]
[346395088,1734939043693,-1047.66,0.00019178,2]
[346395089,1734939043702,-500.0,0.00019178,2]
[346395090,1734939043711,-150.292812,0.00019178,2]
[346395091,1734939043720,-1134.23,0.00019178,2]
[346395092,1734939043730,-500.0,0.00019178,2]
[346395093,1734939043739,-500.0,0.00019178,2]
[346395094,1734939043750,-1053.82,0.00019178,2]
[346395095,1734939043761,-239.35184459,0.00019178,2]
[346395096,1734939043770,-500.0,0.00019178,2]
[346395097,1734939043781,-1080.84,0.00019178,2]
[346395098,1734939043790,-1299.88,0.00019178,2]
[346395099,1734939043801,-500.0,0.00019178,2]
[346395100,1734939043811,-500.0,0.00019178,2]
[346395101,1734939043820,-502.97424383,0.00019178,2]
[346395102,1734939043831,-2554.68,0.00019178,2]
[346395103,1734939043840,-956.6,0.00019178,2]
[346395104,1734939043850,-500.0,0.00019178,2]
[346395105,1734939043860,-500.0,0.00019178,2]
[346395106,1734939043869,-3160.78,0.00019178,2]
[346395107,1734939043879,-4912.17,0.00019178,2]
[346395108,1734939043888,-500.0,0.00019178,2]
[346395109,1734939043897,-3061.96,0.00019178,2]
[346395110,1734939043907,-507.89904507,0.00019178,2]
[346395111,1734939043916,-500.0,0.00019178,2]
[346395112,1734939043925,-1896.09,0.00019178,2]
[346395113,1734939043934,-812.76,0.00019178,2]
[346395114,1734939043944,-9129.34,0.00019178,2]
[346395115,1734939043953,-1076.96,0.00019178,2]
[346395116,1734939043962,-2099.59,0.00019178,2]
[346395117,1734939043971,-500.0,0.00019178,2]
[346395118,1734939043980,-500.0,0.00019178,2]
[346395119,1734939043990,-500.0,0.00019178,2]
[346395120,1734939043999,-6687.44,0.00019178,2]
[346395121,1734939044009,-150.86985593,0.00019178,2]
[346395122,1734939044018,-598.2,0.00019178,2]
[346395123,1734939044028,-2946.48,0.00019178,2]
[346395124,1734939044038,-835.09,0.00019178,2]
[346395125,1734939044049,-500.0,0.00019178,2]
[346395126,1734939044059,-1412.78,0.00019178,2]
[346395127,1734939044068,-500.0,0.00019178,2]
[346395128,1734939044077,-1663.59,0.00019178,2]
[346395129,1734939044087,-500.0,0.00019178,2]
[346395130,1734939044097,-500.0,0.00019178,2]
[346395131,1734939044106,-500.99521009,0.00019178,2]
[346395132,1734939044116,-500.0,0.00019178,2]
[346395133,1734939044125,-1881.81085736,0.00019178,2]
[346395134,1734939044135,-500.0,0.00019178,2]
[346395135,1734939044144,-500.0,0.00019178,2]
[346395136,1734939044154,-4359.49,0.00019178,2]
[346395137,1734939044163,-500.0,0.00019178,2]
[346395138,1734939044172,-500.0,0.00019178,2]
[346395139,1734939044182,-17872.73,0.00019178,2]
[346395140,1734939044191,-1937.03,0.00019178,2]
[346395141,1734939044200,-500.0,0.00019178,2]
[346395142,1734939044209,-500.0,0.00019178,2]
[346395143,1734939044218,-3327.65,0.00019178,2]
[346395144,1734939044227,-2624.25,0.00019178,2]
[346395145,1734939044236,-4460.7,0.00019178,2]
[346395146,1734939044245,-500.0,0.00019178,2]
[346395147,1734939044254,-500.0,0.00019178,2]
[346395148,1734939044263,-516.33,0.00019178,2]
[346395149,1734939044272,-686.77,0.00019178,2]
[346395150,1734939044281,-500.0,0.00019178,2]
[346395151,1734939044291,-500.0,0.00019178,2]
[346395152,1734939044303,-500.0,0.00019178,2]
[346395153,1734939044312,-500.0,0.00019178,2]
[346395154,1734939044322,-1269.73,0.00019178,2]
[346395155,1734939044332,-500.0,0.00019178,2]
[346395156,1734939044342,-500.0,0.00019178,2]
[346395157,1734939044351,-150.622576,0.00019178,2]
[346395158,1734939044360,-2083.08,0.00019178,2]
[346395159,1734939044370,-228.325575,0.00019178,2]
[346395160,1734939044379,-500.0,0.00019178,2]
[346395161,1734939044388,-1807.71,0.00019178,2]
[346395162,1734939044398,-500.0,0.00019178,2]
[346395163,1734939044407,-500.0,0.00019178,2]
[346395164,1734939044416,-500.0,0.00019178,2]
[346395165,1734939044427,-500.0,0.00019178,2]
[346395166,1734939044436,-349.90531158,0.00019178,2]
[346395167,1734939044445,-788.4,0.00019178,2]
[346395168,1734939044455,-4481.48,0.00019178,2]
[346395169,1734939044465,-219.935759,0.00019178,2]
[346395170,1734939044476,-2273.09,0.00019178,2]
[346395171,1734939044486,-500.0,0.00019178,2]
[346395172,1734939044496,-1094.98,0.00019178,2]
[346395173,1734939044506,-1695.99,0.00019178,2]
[346395174,1734939044515,-500.0,0.00019178,2]
[346395175,1734939044525,-500.0,0.00019178,2]
[346395176,1734939044534,-2031.22,0.00019178,2]
[346395177,1734939044547,-2934.28,0.00019178,2]
[346395178,1734939044556,-871.22,0.00019178,2]
[346395179,1734939044567,-500.0,0.00019178,2]
[346395180,1734939044576,-2057.22,0.00019178,2]
[346395181,1734939044586,-771.28,0.00019178,2]
[346395182,1734939044594,-500.0,0.00019178,2]
[346395183,1734939044604,-3880.21,0.00019178,2]
[346395184,1734939044614,-500.0,0.00019178,2]
[346395185,1734939044623,-500.0,0.00019178,2]
[346395186,1734939044633,-500.0,0.00019178,2]
[346395187,1734939044643,-500.0,0.00019178,2]
[346395188,1734939044653,-500.0,0.00019178,2]
[346395189,1734939044663,-179.64962664,0.00019178,2]
[346395190,1734939044672,-341.13754642,0.00019178,2]
[346395213,1734939044853,-518.60933708,0.00019178,2]
[346395215,1734939044863,-405.618264,0.00019178,2]
[346395217,1734939044872,-500.0,0.00019178,2]
[346395219,1734939044881,-500.0,0.00019178,2]
[346395221,1734939044891,-1311.77,0.00019178,2]
[346395223,1734939044900,-3934.56,0.00019178,2]
[346395225,1734939044909,-8498.87,0.00019178,2]
[346395227,1734939044918,-500.0,0.00019178,2]
[346395228,1734939044927,-8954.16,0.00019178,2]
[346395230,1734939044937,-500.0,0.00019178,2]
[346395232,1734939044946,-500.0,0.00019178,2]
[346395234,1734939044956,-244.98943752,0.00019178,2]
[346395236,1734939044965,-419.27273289,0.00019178,2]
[346395238,1734939044974,-500.0,0.00019178,2]
[346395241,1734939044984,-315.85225,0.00019178,2]
[346395243,1734939044993,-500.0,0.00019178,2]
[346395245,1734939045003,-746.62,0.00019178,2]
[346395247,1734939045013,-500.0,0.00019178,2]
[346395249,1734939045024,-500.0,0.00019178,2]
[346395251,1734939045033,-4489.86,0.00019178,2]
[346395253,1734939045044,-500.0,0.00019178,2]
[346395255,1734939045053,-500.0,0.00019178,2]
[346395257,1734939045063,-1021.27,0.00019178,2]
[346395259,1734939045072,-500.0,0.00019178,2]
[346395261,1734939045082,-500.0,0.00019178,2]
[346395263,1734939045091,-500.0,0.00019178,2]
[346395265,1734939045101,-1726.33,0.00019178,2]
[346395267,1734939045110,-500.0,0.00019178,2]
[346395269,1734939045119,-711.05,0.00019178,2]
[346395271,1734939045128,-509.65173689,0.00019178,2]
[346395273,1734939045138,-500.0,0.00019178,2]
[346395275,1734939045149,-500.0,0.00019178,2]
[346395277,1734939045159,-670.851473,0.00019178,2]
[346395279,1734939045169,-500.0,0.00019178,2]
[346395281,1734939045178,-500.0,0.00019178,2]
[346395283,1734939045187,-1931.21,0.00019178,2]
[346395285,1734939045197,-500.0,0.00019178,2]
[346395287,1734939045206,-3146.81,0.00019178,2]
[346395289,1734939045215,-500.0,0.00019178,2]
[346395291,1734939045225,-500.0,0.00019178,2]
[346395293,1734939045234,-500.0,0.00019178,2]
[346395295,1734939045243,-500.0,0.00019178,2]
[346395297,1734939045252,-500.0,0.00019178,2]
[346395299,1734939045262,-218.38314702,0.00019178,2]
[346395301,1734939045272,-500.0,0.00019178,2]
[346395303,1734939045281,-500.0,0.00019178,2]
[346395305,1734939045291,-203.0,0.00019178,2]
[346395307,1734939045301,-934.27989966,0.00019233,2]
[346395309,1734939045310,-1096.53172738,0.0001926,2]
[346395311,1734939045320,-169.42,0.00019283,2]
[346395313,1734939045330,-1714.9966526,0.00019304,2]
[346395315,1734939045339,-934.27989966,0.00019344,2]
[346395317,1734939045348,-1000.0,0.00019399,2]
[346395319,1734939045357,-333.45122411,0.000194,2]
[346395321,1734939045367,-2338.97164709,0.000194,2]
[346395323,1734939045377,-7176.65683612,0.00019442,2]
[346395325,1734939045386,-264.0018328,0.00019442,2]
[346395327,1734939045396,-264.0018328,0.00019443,2]
[346395329,1734939045406,-15625.04545485,0.00019445,2]
[346395331,1734939045415,-17256.91802818,0.00019445,2]
[346395333,1734939045425,-200.0,0.00019449,2]
[346395335,1734939045435,-15625.04545485,0.0001945,2]
[346395337,1734939045444,-14111.55486759,0.00019451,10]
[346395339,1734939045455,-500.0,0.00019451,2]
[346395341,1734939045464,-500.0,0.00019451,2]
[346395343,1734939045474,-500.0,0.00019451,2]
[346395345,1734939045483,-500.0,0.00019451,2]
[346395347,1734939045493,-500.0,0.00019451,2]
[346395349,1734939045508,-500.0,0.00019451,2]
[346395351,1734939045521,-500.0,0.00019451,2]
[346395353,1734939045531,-2000.0,0.00019452,2]
[346395355,1734939045543,-200.0,0.00019452,2]
[346395357,1734939045552,-500.0,0.00019452,2]
[346395359,1734939045561,-500.0,0.00019452,2]
[346395361,1734939045570,-217.46003508,0.00019452,2]
[346395363,1734939045580,-500.0,0.00019452,2]
[346395365,1734939045589,-500.0,0.00019452,2]
[346395367,1734939045598,-500.0,0.00019452,2]
[346395369,1734939045607,-500.0,0.00019452,2]
[346395371,1734939045617,-500.0,0.00019452,2]
[346395373,1734939045627,-500.0,0.00019452,2]
[346395375,1734939045636,-500.0,0.00019452,2]
[346395377,1734939045645,-500.0,0.00019452,2]